[Event "WYCC U18 Open 2019"]
[Site "Mumbai"]
[Date "2019.10.12"]
[Round "11.12"]
[White "Petriashvili, Nikoloz"]
[Black "Garidmagnai, Byambasuren"]
[Result "0-1"]
[ECO "A49"]
[WhiteElo "2441"]
[BlackElo "2327"]
[Annotator "ChessBase"]
[PlyCount "108"]
[EventDate "2019.10.02"]
[EventType "swiss"]
[EventCountry "IND"]
[SourceTitle "playchess.com"]
[Source "ChessBase"]
[SourceQuality "1"]
[TimeControl "40/5400+30:1800+30"]

1. d4 {[%emt 0:00:00]} Nf6 {[%emt 0:00:31]} 2. Nf3 {[%emt 0:00:00]} g6 {[%emt 0:00:06]} 3. g3 {[%emt 0:00:00]} Bg7 {[%emt 0:00:04]} 4. Bg2 {[%emt 0:00:03]} O-O {[%emt 0:00:07]} 5. O-O {[%emt 0:00:04]} d6 {[%emt 0:00:04]} 6. b3 {[%emt 0:00:20]} a5 {[%emt 0:01:18]} 7. Nc3 {[%emt 0:01:59]} Na6 {[%emt 0:02:53]} 8. Bb2 {[%emt 0:02:24]} c5 {[%emt 0:00:15]} 9. Re1 {[%emt 0:01:56]} Bd7 {[%emt 0:02:55]} 10. a4 {[%emt 0:06:05]} Rc8 {[%emt 0:02:46]} 11. Nb5 {[%emt 0:00:01]} cxd4 {[%emt 0:01:29]} 12. Nfxd4 {[%emt 0:00:15]} Qb6 {[%emt 0:00:25]} 13. c4 {[%emt 0:06:30]} Nc5 {[%emt 0:01:52]} 14. Nc3 {[%emt 0:02:38]} Bc6 {[%emt 0:01:11]} 15. e4 {[%emt 0:01:21]} Nfd7 {[%emt 0:02:42]} 16. Ndb5 {[%emt 0:09:03]} Qd8 {[%emt 0:02:25]} 17. Rb1 {[%emt 0:02:18]} Ne5 {[%emt 0:07:56]} 18. Re3 {[%emt 0:05:37]} Bxb5 {[%emt 0:12:49]} 19. Nxb5 {[%emt 0:00:36]} Qd7 {[%emt 0:01:34]} 20. h3 {[%emt 0:03:09]} Nc6 {[%emt 0:04:15]} 21. f4 {[%emt 0:02:03]} Rcd8 {[%emt 0:03:05]} 22. Qf1 {[%emt 0:03:26]} e5 {[%emt 0:03:11]} 23. f5 {[%emt 0:07:22]} Nd4 {[%emt 0:01:57]} 24. Qd1 {[%emt 0:29:08]} Nxb5 {[%emt 0:02:22]} 25. axb5 {[%emt 0:00:42]} gxf5 {[%emt 0:00:10]} 26. exf5 {[%emt 0:00:41]} Qxf5 {[%emt 0:00:06]} 27. b6 {[%emt 0:02:59]} Qg5 {[%emt 0:01:57]} 28. Bc1 {[%emt 0:02:08]} f5 {[%emt 0:02:02]} 29. Rxe5 {[%emt 0:02:06]} Qxg3 {[%emt 0:00:20]} 30. Qd5+ {[%emt 0:01:41]} Kh8 {[%emt 0:00:13]} 31. Re3 {[%emt 0:01:01]} Qg6 {[%emt 0:00:28]} 32. Bb2 {[%emt 0:01:42]} f4 {[%emt 0:01:47]} 33. Bxg7+ {[%emt 0:00:23]} Qxg7 {[%emt 0:02:09]} 34. Rf3 {[%emt 0:00:07]} Qe5 {[%emt 0:03:02]} 35. Rd1 {[%emt 0:00:38]} Rg8 {[%emt 0:01:14]} 36. Kf1 {[%emt 0:01:13]} Rde8 {[%emt 0:06:05]} 37. Rf2 {[%emt 0:01:36]} Rg6 {[%emt 0:01:17]} 38. Qd4 {[%emt 0:01:46]} Rf6 {[%emt 0:02:23]} 39. Rf3 {[%emt 0:03:13]} Qxd4 {[%emt 0:04:12]} 40. Rxd4 {[%emt 0:00:06]} Re3 {[%emt 0:00:17]} 41. Kf2 {[%emt 0:07:35]} Rxb3 {[%emt 0:02:51]} 42. Rxb3 {[%emt 0:00:50]} Nxb3 {[%emt 0:00:06]} 43. Re4 {[%emt 0:00:04]} f3 {[%emt 0:03:53]} 44. Re8+ {[%emt 0:02:05]} Kg7 {[%emt 0:00:06]} 45. Re7+ {[%emt 0:02:21]} Kf8 {[%emt 0:00:38]} 46. Rxb7 {[%emt 0:00:33]} fxg2+ {[%emt 0:00:05]} 47. Kxg2 {[%emt 0:01:01]} Nc5 {[%emt 0:00:24]} 48. Rxh7 {[%emt 0:01:37]} Rf7 {[%emt 0:00:34]} 49. Rh8+ {[%emt 0:00:19]} Kg7 {[%emt 0:00:43]} 50. Ra8 {[%emt 0:00:34]} a4 {[%emt 0:00:25]} 51. h4 {[%emt 0:01:08]} Rb7 {[%emt 0:00:15]} 52. Kg3 {[%emt 0:00:33]} Rxb6 {[%emt 0:00:05]} 53. Kg4 {[%emt 0:00:06]} Ra6 {[%emt 0:00:11]} 54. Rc8 {[%emt 0:00:15]} a3 {[%emt 0:00:08]} 0-1

[Event "WYCC U18 Open 2019"]
[Site "Mumbai"]
[Date "2019.10.12"]
[Round "11.13"]
[White "Mendonca, Leon Luke"]
[Black "Aliyev, Ravan"]
[Result "1-0"]
[ECO "A40"]
[WhiteElo "2388"]
[BlackElo "2341"]
[Annotator "ChessBase"]
[PlyCount "67"]
[EventDate "2019.10.02"]
[EventType "swiss"]
[EventCountry "IND"]
[SourceTitle "playchess.com"]
[Source "ChessBase"]
[SourceQuality "1"]
[TimeControl "40/5400+30:1800+30"]

1. d4 e6 2. Nf3 Nf6 3. Bf4 d5 4. e3 Bd6 5. Bg3 O-O 6. Nbd2 c5 7. c3 Qc7 8. Bd3 Nbd7 9. Bxd6 Qxd6 10. O-O e5 11. dxe5 Nxe5 12. Nxe5 Qxe5 13. Nf3 Qc7 14. h3 b6 15. Be2 Bb7 16. a4 Rfd8 17. a5 Bc6 18. Qb3 Ne4 19. Qa3 Rdb8 20. Rfd1 h6 21. Nd2 Ng5 22. b4 Qe7 23. b5 Bd7 24. Nf3 bxa5 25. Nxg5 hxg5 26. Qxa5 Be6 27. c4 Rd8 28. Bf3 Rab8 29. cxd5 Bd7 30. Qxa7 Rxb5 31. d6 Qf6 32. Qc7 Rb2 33. Rab1 Ra2 34. Rb8 1-0

[Event "WYCC U18 Open 2019"]
[Site "Mumbai"]
[Date "2019.10.12"]
[Round "11.14"]
[White "Panesar Vedant"]
[Black "Stoleriu, George"]
[Result "1/2-1/2"]
[ECO "A30"]
[WhiteElo "2219"]
[BlackElo "2351"]
[Annotator "NA"]
[PlyCount "61"]
[EventDate "2019.10.02"]
[EventType "swiss"]
[EventCountry "IND"]
[SourceTitle "playchess.com"]
[Source "ChessBase"]
[SourceQuality "1"]
[TimeControl "40/5400+30:1800+30"]

1. Nf3 {[%emt 0:00:00]} Nf6 {[%emt 0:00:00]} 2. c4 {[%emt 0:00:00]} e6 {[%emt 0:00:00]} 3. g3 {[%emt 0:00:00]} b6 {[%emt 0:00:00]} 4. Bg2 {[%emt 0:00:00]} Bb7 {[%emt 0:00:00]} 5. O-O {[%emt 0:00:00]} c5 {[%emt 0:00:06]} 6. Nc3 {[%emt 0:00:51]} Be7 {[%emt 0:00:01]} 7. b3 {[%emt 0:00:45]} O-O {[%emt 0:00:04]} 8. Bb2 {[%emt 0:00:02]} d5 {[%emt 0:05:49]} 9. cxd5 {[%emt 0:00:11]} Nxd5 {[%emt 0:00:07]} 10. d4 {[%emt 0:03:00]} Nxc3 {[%emt 0:17:16]} 11. Bxc3 {[%emt 0:00:02]} cxd4 {[%emt 0:00:43]} 12. Qxd4 {[%emt 0:00:41]} Qxd4 {[%emt 0:01:20]} 13. Nxd4 {[%emt 0:00:10]} Bxg2 {[%emt 0:00:06]} 14. Kxg2 {[%emt 0:00:03]} Rc8 {[%emt 0:01:21]} 15. Rac1 {[%emt 0:01:13]} Nc6 {[%emt 0:14:32]} 16. Nxc6 {[%emt 0:01:26]} Rxc6 {[%emt 0:00:05]} 17. Bb2 {[%emt 0:00:06]} Rac8 {[%emt 0:00:08]} 18. Rxc6 {[%emt 0:00:05]} Rxc6 {[%emt 0:00:02]} 19. Rc1 {[%emt 0:00:01]} Rxc1 {[%emt 0:00:09]} 20. Bxc1 {[%emt 0:00:05]} Kf8 {[%emt 0:00:23]} 21. Bb2 {[%emt 0:01:45]} g6 {[%emt 0:00:16]} 22. Kf3 {[%emt 0:00:37]} Ke8 {[%emt 0:00:03]} 23. Ke4 {[%emt 0:00:17]} Kd7 {[%emt 0:00:04]} 24. Kd3 {[%emt 0:02:18]} Kc6 {[%emt 0:00:05]} 25. Bc3 {[%emt 0:00:46]} b5 {[%emt 0:00:06]} 26. e4 {[%emt 0:01:06]} a6 {[%emt 0:00:04]} 27. f3 {[%emt 0:00:27]} Kd7 {[%emt 0:00:04]} 28. Bd4 {[%emt 0:00:17]} Kc6 {[%emt 0:00:02]} 29. Bc3 {[%emt 0:00:25]} Kc5 {[%emt 0:00:11]} 30. Bd2 {[%emt 0:00:32]} Kc6 {[%emt 0:00:05]} 31. Bc3 1/2-1/2

[Event "WYCC U18 Open 2019"]
[Site "Mumbai"]
[Date "2019.10.12"]
[Round "11.15"]
[White "Sibi Visal R"]
[Black "Chylewski, Patryk"]
[Result "1-0"]
[ECO "E15"]
[WhiteElo "2064"]
[BlackElo "2348"]
[Annotator "ChessBase"]
[PlyCount "121"]
[EventDate "2019.10.02"]
[EventType "swiss"]
[EventCountry "IND"]
[SourceTitle "playchess.com"]
[Source "ChessBase"]
[SourceQuality "1"]
[TimeControl "40/5400+30:1800+30"]

1. c4 {[%emt 0:00:00]} e6 {[%emt 0:00:00]} 2. Nf3 {[%emt 0:00:00]} Nf6 {[%emt 0:00:00]} 3. d4 {[%emt 0:00:00]} b6 {[%emt 0:01:33]} 4. g3 {[%emt 0:00:00]} Bb7 {[%emt 0:00:44]} 5. Bg2 {[%emt 0:00:00]} c5 {[%emt 0:00:04]} 6. O-O {[%emt 0:01:06]} cxd4 {[%emt 0:00:04]} 7. Nxd4 {[%emt 0:01:04]} Bxg2 {[%emt 0:03:02]} 8. Kxg2 {[%emt 0:00:02]} Qc8 {[%emt 0:00:08]} 9. b3 {[%emt 0:00:50]} Be7 {[%emt 0:00:55]} 10. Bb2 {[%emt 0:01:11]} O-O {[%emt 0:00:10]} 11. Nc3 {[%emt 0:00:02]} Qb7+ {[%emt 0:02:01]} 12. f3 {[%emt 0:01:06]} Rd8 {[%emt 0:01:10]} 13. e4 {[%emt 0:02:42]} Nc6 {[%emt 0:03:42]} 14. Nxc6 {[%emt 0:02:28]} dxc6 {[%emt 0:00:38]} 15. Qe2 {[%emt 0:01:11]} Bc5 {[%emt 0:06:10]} 16. e5 {[%emt 0:05:22]} Ne8 {[%emt 0:00:16]} 17. Rad1 {[%emt 0:00:55]} Bd4 {[%emt 0:00:38]} 18. Qe4 {[%emt 0:00:23]} Bxc3 {[%emt 0:03:16]} 19. Bxc3 {[%emt 0:00:02]} Qc7 {[%emt 0:00:33]} 20. f4 {[%emt 0:04:25]} g6 {[%emt 0:07:13]} 21. g4 {[%emt 0:00:08]} Ng7 {[%emt 0:00:59]} 22. Bb4 {[%emt 0:02:19]} c5 {[%emt 0:04:55]} 23. Bc3 {[%emt 0:00:21]} Rac8 {[%emt 0:01:51]} 24. Qf3 {[%emt 0:01:22]} Kf8 {[%emt 0:04:22]} 25. h3 {[%emt 0:08:43]} Ke8 {[%emt 0:05:17]} 26. Rd6 {[%emt 0:01:07]} Kf8 {[%emt 0:07:08]} 27. Rfd1 {[%emt 0:01:37]} Ne8 {[%emt 0:00:47]} 28. R6d3 {[%emt 0:01:51]} Rxd3 {[%emt 0:04:32]} 29. Qxd3 {[%emt 0:03:34]} Qc6+ {[%emt 0:01:22]} 30. Qf3 {[%emt 0:02:07]} Qxf3+ {[%emt 0:10:18]} 31. Kxf3 {[%emt 0:00:01]} Ke7 {[%emt 0:00:12]} 32. Be1 {[%emt 0:00:39]} Nc7 {[%emt 0:02:04]} 33. Ke4 {[%emt 0:01:19]} Na6 {[%emt 0:04:27]} 34. f5 {[%emt 0:04:02]} exf5+ {[%emt 0:00:28]} 35. gxf5 {[%emt 0:01:54]} gxf5+ {[%emt 0:00:16]} 36. Kxf5 {[%emt 0:00:18]} Nb4 {[%emt 0:06:54]} 37. Bh4+ {[%emt 0:01:38]} Ke8 {[%emt 0:05:02]} 38. Kf6 {[%emt 0:03:33]} Nc6 {[%emt 0:05:27]} 39. e6 {[%emt 0:06:34]} fxe6 {[%emt 0:00:56]} 40. Rg1 {[%emt 0:00:43]} Nd4 {[%emt 0:09:45]} 41. Rg7 {[%emt 0:35:17]} Nf5 {[%emt 0:06:31]} 42. Rxh7 {[%emt 0:00:00]} Nxh4 43. Rxh4 {[%emt 0:00:00]} Kd7 {[%emt 0:00:37]} 44. Ke5 {[%emt 0:00:00]} Rf8 {[%emt 0:03:08]} 45. Rf4 {[%emt 0:00:00]} Rh8 {[%emt 0:01:42]} 46. h4 {[%emt 0:00:00]} Ke7 {[%emt 0:00:30]} 47. Rg4 {[%emt 0:00:00]} Rh7 {[%emt 0:02:31]} 48. Rg6 {[%emt 0:00:00]} Kd7 {[%emt 0:01:15]} 49. Rg4 {[%emt 0:00:00]} Ke7 {[%emt 0:00:05]} 50. Rg5 {[%emt 0:00:00]} Kd7 {[%emt 0:10:41]} 51. h5 {[%emt 0:00:00]} Rh6 {[%emt 0:00:39]} 52. Kf4 {[%emt 0:00:00]} Ke7 {[%emt 0:07:34]} 53. Kg4 {[%emt 0:00:00]} Kf7 {[%emt 0:00:16]} 54. Re5 {[%emt 0:00:00]} Rf6 {[%emt 0:00:04]} 55. Re3 {[%emt 0:00:00]} Rh6 {[%emt 0:01:41]} 56. Rf3+ {[%emt 0:00:00]} Ke7 {[%emt 0:00:09]} 57. Kg5 {[%emt 0:00:00]} Rh8 {[%emt 0:00:05]} 58. h6 {[%emt 0:00:00]} Rg8+ {[%emt 0:00:40]} 59. Kh5 {[%emt 0:00:00]} Rg2 {[%emt 0:00:28]} 60. Rf4 {[%emt 0:00:00]} e5 {[%emt 0:01:10]} 61. Rg4 {[%emt 0:00:00]} 1-0

[Event "WYCC U18 Open 2019"]
[Site "Mumbai"]
[Date "2019.10.12"]
[Round "11.16"]
[White "Manish Anto Cristiano F"]
[Black "Vanczak, Tamas"]
[Result "1/2-1/2"]
[ECO "B72"]
[WhiteElo "2320"]
[BlackElo "2327"]
[Annotator "ChessBase"]
[PlyCount "142"]
[EventDate "2019.10.02"]
[EventType "swiss"]
[EventCountry "IND"]
[SourceTitle "playchess.com"]
[Source "ChessBase"]
[SourceQuality "1"]
[TimeControl "40/5400+30:1800+30"]

1. e4 {[%emt 0:00:00]} c5 {[%emt 0:00:00]} 2. Nf3 {[%emt 0:00:07]} d6 {[%emt 0:00:21]} 3. d4 {[%emt 0:00:34]} cxd4 {[%emt 0:00:07]} 4. Nxd4 {[%emt 0:00:24]} Nf6 {[%emt 0:00:14]} 5. Nc3 {[%emt 0:00:29]} g6 {[%emt 0:00:24]} 6. Be3 {[%emt 0:00:30]} a6 {[%emt 0:00:23]} 7. f3 {[%emt 0:00:38]} b5 {[%emt 0:00:22]} 8. Qd2 {[%emt 0:00:32]} Bb7 {[%emt 0:00:24]} 9. O-O-O {[%emt 0:01:12]} Nbd7 {[%emt 0:00:31]} 10. Kb1 {[%emt 0:05:40]} b4 {[%emt 0:05:36]} 11. Nd5 {[%emt 0:03:46]} Nxd5 {[%emt 0:06:19]} 12. exd5 {[%emt 0:00:25]} Bxd5 {[%emt 0:00:55]} 13. Qxb4 {[%emt 0:09:09]} Bg7 {[%emt 0:03:42]} 14. Qd2 {[%emt 0:05:07]} Rb8 {[%emt 0:07:31]} 15. Bxa6 {[%emt 0:02:35]} Ra8 {[%emt 0:03:00]} 16. c4 {[%emt 0:00:21]} Rxa6 {[%emt 0:02:36]} 17. cxd5 {[%emt 0:00:15]} Qa8 {[%emt 0:01:55]} 18. Nb5 {[%emt 0:06:28]} Qb7 {[%emt 0:01:44]} 19. Bd4 {[%emt 0:01:32]} Bxd4 {[%emt 0:00:42]} 20. Qxd4 {[%emt 0:00:43]} O-O {[%emt 0:00:46]} 21. Nc3 {[%emt 0:00:59]} Rb6 {[%emt 0:02:34]} 22. Rd2 {[%emt 0:01:24]} Rb4 {[%emt 0:01:20]} 23. Qf2 {[%emt 0:01:44]} Ne5 {[%emt 0:01:28]} 24. Ka1 {[%emt 0:05:53]} Rb8 {[%emt 0:03:52]} 25. Rb1 {[%emt 0:00:18]} Nc4 {[%emt 0:02:08]} 26. Re2 {[%emt 0:00:13]} Qc7 {[%emt 0:08:57]} 27. Qe1 {[%emt 0:02:35]} R8b7 {[%emt 0:04:30]} 28. h4 {[%emt 0:01:51]} Na5 {[%emt 0:03:29]} 29. Rc1 {[%emt 0:06:39]} Qd7 {[%emt 0:08:04]} 30. h5 {[%emt 0:02:04]} Ra7 {[%emt 0:01:25]} 31. Kb1 {[%emt 0:03:26]} Qf5+ {[%emt 0:04:15]} 32. Ne4 {[%emt 0:01:37]} Rb8 {[%emt 0:02:24]} 33. h6 {[%emt 0:03:24]} Raa8 {[%emt 0:01:42]} 34. Rc7 {[%emt 0:04:33]} Qxd5 {[%emt 0:01:43]} 35. Rxe7 {[%emt 0:01:11]} Qd3+ {[%emt 0:04:44]} 36. Rc2 {[%emt 0:00:03]} Nc4 {[%emt 0:02:01]} 37. Nf6+ {[%emt 0:02:12]} Kh8 {[%emt 0:00:07]} 38. Kc1 {[%emt 0:01:10]} Ne5 {[%emt 0:00:41]} 39. Rxe5 {[%emt 0:07:35]} dxe5 {[%emt 0:04:24]} 40. Qxe5 {[%emt 0:00:12]} Qf1+ {[%emt 0:02:32]} 41. Kd2 {[%emt 0:30:02]} Qxg2+ {[%emt 0:30:44]} 42. Ke3 {[%emt 0:03:40]} Qg1+ {[%emt 0:03:51]} 43. Kf4 {[%emt 0:01:11]} Rb6 {[%emt 0:00:59]} 44. Qc3 {[%emt 0:00:00]} Rd6 {[%emt 0:00:00]} 45. Ne4+ {[%emt 0:01:34]} Qd4 {[%emt 0:00:00]} 46. Qxd4+ {[%emt 0:00:14]} Rxd4 {[%emt 0:00:00]} 47. Rc7 {[%emt 0:00:11]} f5 {[%emt 0:00:00]} 48. Ke5 {[%emt 0:02:42]} Rda4 {[%emt 0:00:00]} 49. Ng5 {[%emt 0:00:24]} R4a7 {[%emt 0:00:00]} 50. Rxa7 {[%emt 0:00:39]} Rxa7 {[%emt 0:00:00]} 51. a3 {[%emt 0:00:07]} Rb7 {[%emt 0:00:00]} 52. b4 {[%emt 0:00:09]} Ra7 {[%emt 0:00:00]} 53. Kd6 {[%emt 0:00:24]} Rxa3 {[%emt 0:00:00]} 54. b5 {[%emt 0:00:08]} Rb3 {[%emt 0:00:00]} 55. Kc6 {[%emt 0:00:10]} Rc3+ {[%emt 0:00:00]} 56. Kd6 {[%emt 0:00:18]} Rb3 {[%emt 0:00:00]} 57. Kc6 {[%emt 0:00:52]} Rc3+ {[%emt 0:00:00]} 58. Kb7 {[%emt 0:03:33]} Kg8 {[%emt 0:00:00]} 59. b6 {[%emt 0:00:07]} Rb3 {[%emt 0:00:00]} 60. Kc7 {[%emt 0:00:09]} Rc3+ {[%emt 0:00:00]} 61. Kb8 {[%emt 0:00:59]} Rb3 {[%emt 0:00:00]} 62. b7 {[%emt 0:00:11]} Rb4 {[%emt 0:00:08]} 63. Kc8 {[%emt 0:02:06]} Rc4+ {[%emt 0:00:10]} 64. Kd7 {[%emt 0:00:31]} Rb4 {[%emt 0:00:09]} 65. Kc7 {[%emt 0:00:28]} Rc4+ {[%emt 0:00:06]} 66. Kd6 {[%emt 0:00:07]} Rb4 {[%emt 0:00:07]} 67. Kc6 {[%emt 0:00:07]} Rb1 {[%emt 0:01:05]} 68. f4 {[%emt 0:05:10]} Rc1+ {[%emt 0:00:32]} 69. Kb6 {[%emt 0:00:09]} Rb1+ {[%emt 0:00:06]} 70. Kc7 {[%emt 0:00:10]} Rc1+ {[%emt 0:00:07]} 71. Kb8 {[%emt 0:00:11]} Rb1 {[%emt 0:00:27]} 1/2-1/2